Cogmind - Beta 15 @@@ ROGUE MODE // 2025.05.08 @ 20:07:46 Player: NuclearMayhem Result: Destroyed by E6-1YQ(R) with Subdweller Machine Gun Performance ------------- Evolutions (0) 0 Regions Visited (2) 400 Robots Destroyed (15) 75 Value Destroyed (337) 337 Prototype IDs (11) 220 Alien Tech Used (0) 0 Bonus (-80) -80 TOTAL SCORE: 952 Bonus ------- Friendly Fire -80 Cogmind --------- Core Integrity 0/250 Matter 92/300 Energy 100/100 System Corruption 0% Temperature Cool (6) Movement Treading (160) Location -10/Subcaves Parts ------- > --- POWER (1) -------- (None) > --- PROPULSION (2) --- Light Treads > --- UTILITY (2) ------ Disposable Heat Sink Small Storage Unit > --- WEAPON (2) ------- (None) > --- INVENTORY (8) ---- Aluminum Leg Wheel Compact Wheel Subdweller Monowheel Power Bank Subdweller Machine Gun Multitool Peak State ------------ > --- POWER ------------ Subdweller Power Source > --- PROPULSION ------- Aluminum Leg Aluminum Leg > --- UTILITY ---------- Small Storage Unit Subdweller Optics > --- WEAPON ----------- Subdweller Beam Cannon Heavy Battle Rifle > --- INVENTORY -------- Light Treads Light Treads Wheel Compact Wheel Subdweller Monowheel Light Assault Rifle Subdweller Machine Gun Shrapnel Trap [Rating: 14] Favorites ----------- Power Ion Engine Engine Ion Engine Propulsion Aluminum Leg Treads Light Treads Leg Aluminum Leg Utility Small Storage Unit Device Subdweller Optics Storage Small Storage Unit Weapon Heavy Battle Rifle Energy Cannon Subdweller Beam Cannon Ballistic Gun Heavy Battle Rifle Build | -11 -10 -10 ------- Run | Yrd Mat Sub Slots Evolved . | . . . Power . | . . . Propulsion . | . . . Utility . | . . . Weapon . | . . . Parts Attached 17 | 7 . 10 Power 2 | 1 . 1 Engine 2 | 1 . 1 Core . | . . . Reactor . | . . . Propulsion 4 | 3 . 1 Treads 2 | 1 . 1 Leg 2 | 2 . . Wheel . | . . . Hover . | . . . Flight . | . . . Utility 3 | 1 . 2 Device 2 | . . 2 Storage 1 | 1 . . Processor . | . . . Hackware . | . . . Protection . | . . . Artifact . | . . . Weapon 8 | 2 . 6 Energy Gun . | . . . Energy Cannon 1 | . . 1 Ballistic Gun 7 | 2 . 5 Ballistic Cannon . | . . . Launcher . | . . . Special Weapon . | . . . Impact Weapon . | . . . Slashing Weapon . | . . . Piercing Weapon . | . . . Special Melee Weapon . | . . . Unidentified Prototypes . | . . . Parts Lost 6 | . . 6 Power 1 | . . 1 Propulsion 2 | . . 2 Utility . | . . . Weapon 3 | . . 3 Highest Loss Streak 2 | . . 2 To Critical Strikes . | . . . Average Backups 6 | 3 6 7 Power . | . 1 . Propulsion 4 | 2 4 4 Utility . | . . . Weapon 1 | . 1 1 Tool/Special . | . . . Unused Backups 6 | . . 6 Power 1 | . . 1 Propulsion 3 | . . 3 Utility 1 | . . 1 Weapon . | . . . Tool/Special 1 | . . 1 Average Slot Usage (%) 94 | . 85 94 Engine 12 | . 14 12 Treads 1 | . . 1 Leg 24 | . 28 24 Device 12 | . . 12 Storage 14 | . 14 14 Energy Cannon 6 | . . 7 Ballistic Gun 20 | . 28 20 Peak Build Rating 14 | 6 6 14 Average Rating 10 | 4 6 11 On Entrance 4 | . 6 6 Naked Turns . | . . . Heaviest Build 24 | 13 13 24 Greatest Support 40 | 20 20 40 Greatest Overweight (x) 1 | . . 1 Average Overweight (x) . | . . . Largest Inventory Capacity 8 | 8 8 8 Average Capacity 7 | 6 8 8 Most Carried 8 | 6 7 8 Average Carried 7 | 3 6 7 Final Capacity 8 | 8 8 8 Final Carried 7 | 6 7 7 Class Distribution -------------------- 100% | Mutant Dominant Class ---------------- Mutant | -10/Materials Mutant | -10/Subcaves Resources | -11 -10 -10 ----------- Run | Yrd Mat Sub Matter Collected 540 | 246 . 294 Remotely . | . . . Salvage Created 422 | 23 . 399 Parts 32 | 3 . 29 Haulers Intercepted . | . . . Recyclers Shooed . | . . . Parts Field Recycled . | . . . Retrieved Matter . | . . . Parts Self-Destructed 12 | . . 12 Prevented . | . . . Kills | -11 -10 -10 ------- Run | Yrd Mat Sub Combat Hostiles Destroyed 12 | . . 12 Guns 9 | . . 9 Cannons 3 | . . 3 Classes Destroyed 5 | 1 . 4 Tunneler 1 | 1 . . Turret 2 | . . 2 Swarmer 7 | . . 7 Artisan 1 | . . 1 Subdweller 5 | . . 5 Best Kill Streak 4 | 1 . 4 Combat Bots Only 4 | . . 4 Max Kills in Single Turn 2 | 1 . 2 Gunslinging . | . . . Exploded . | . . . Melee . | . . . Uniques/NPCs Destroyed . | . . . Combat | -11 -10 -10 -------- Run | Yrd Mat Sub Hostile Shots Fired 164 | . . 164 Missed 69 | . . 69 Hits 95 | . . 95 Projectile 95 | . . 95 Critical Strikes 3 | . . 3 Damage Taken 1264 | . . 1264 Core 251 | . . 251 Absorbed by Shields . | . . . Core Remaining (%) 100 | 100 . . Volleys Fired 94 | 2 3 89 Largest 2 | 2 2 2 Hottest 113 | 40 40 113 Shots Fired 160 | 4 6 150 Gun 141 | 4 6 131 Cannon 19 | . . 19 Launcher . | . . . Special . | . . . Kinetic 141 | 4 6 131 Thermal 19 | . . 19 Explosive . | . . . Electromagnetic . | . . . Robot Hit Streak 15 | 3 1 15 Robot Miss Streak 5 | . 3 5 Penetration Max . | . . . Secondary Targets 1 | . . 1 Max Gunslinging Chain 1 | . . 1 Shots Hit Robots 85 | 3 2 80 Core Hits 27 | 1 1 25 Critical Kills . | . . . Critical Parts Destroyed . | . . . Critical Strikes . | . . . Melee Attacks . | . . . Impact . | . . . Slashing . | . . . Piercing . | . . . Sneak Attacks . | . . . Combat Hostiles . | . . . Follow-up Attacks . | . . . Damage Inflicted 1355 | 39 18 1298 Guns 1183 | 39 18 1126 Cannons 169 | . . 169 Explosions . | . . . Melee . | . . . Ramming 3 | . . 3 Kinetic 1183 | 39 18 1126 Thermal 169 | . . 169 Explosive . | . . . Electromagnetic . | . . . Impact . | . . . Slashing . | . . . Piercing . | . . . Highest Corruption . | . . . Average Corruption . | . . . Corruption Purged . | . . . Corruption Blocked . | . . . Overload Shots . | . . . Overflow Damage 14 | . . 14 Projectiles 14 | . . 14 Explosions . | . . . Melee . | . . . Knockbacks 1 | . . 1 Impact 1 | . . 1 Kinetic . | . . . Secondary . | . . . Self-Inflicted Damage . | . . . Shots . | . . . Rammed 2 | . . 2 Targets Rammed 2 | . . 2 Kicked . | . . . Crushed . | . . . Highest Temperature 213 | . . 213 Average Temperature 48 | . . 48 Received Heat Transfer 651 | . . 651 Siege Activations . | . . . Martial Activations . | . . . Shielding Activations . | . . . Robots Disrupted . | . . . Combat Hostiles . | . . . Robots Corrupted . | . . . Combat Hostiles . | . . . Parts Fried . | . . . Impact Corruptions . | . . . Robots Melted . | . . . Combat Hostiles . | . . . Parts Melted 1 | . . 1 Heat Transferred 222 | . . 222 Parts Sabotaged . | . . . Parts Stolen . | . . . Parts Stripped . | . . . Power Chain Reactions . | . . . Alert | -11 -10 -10 ------- Run | Yrd Mat Sub Maximum Alert Level . | . . . Low Security (%) 100 | 100 100 . Level 1 . | . . . Level 2 . | . . . Level 3 . | . . . Level 4 . | . . . Level 5 . | . . . High Security . | . . . Max Security . | . . . Peak Influence 5 | 5 3 . Initial 3 | . 3 . Average . | . 1 . Influence Increases 285 | 5 . 280 Destroy 0b10 Robot/C 180 | . . 180 Destroy 0b10 Robot/NC 5 | 5 . . Destroy Leader 10 | . . 10 Lose Combat Pursuer 90 | . . 90 Influence Decreases 285 | . 5 280 Entered New Map 2 | . 2 . Time Decay 273 | . 3 270 Lost Part 10 | . . 10 Squads Dispatched 1 | . 1 . Investigation . | . . . Extermination . | . . . Reinforcement 1 | . 1 . Assault . | . . . Garrison . | . . . Intercept . | . . . Searches Triggered . | . . . Construction Impeded . | . . . Haulers Reinforced . | . . . Active Scanning Responses . | . . . Cargo Convoy Interrupts . | . . . Stealth | -11 -10 -10 --------- Run | Yrd Mat Sub Distress Signals . | . . . Communications Jammed . | . . . Distress Signals . | . . . Times Spotted 19 | . 1 18 Peak Tracking Total 6 | . . 6 Tactical Retreats 3 | . . 3 Traps | -11 -10 -10 ------- Run | Yrd Mat Sub Traps Triggered . | . . . Indirectly . | . . . Trap Hack Attempts . | . . . Triggered . | . . . Disarmed . | . . . Reprogrammed . | . . . Reused . | . . . Traps Extracted . | . . . Installed . | . . . Triggered . | . . . Most Traps Carried 1 | . . 1 Machines | -11 -10 -10 ---------- Run | Yrd Mat Sub Machines Disabled 3 | . . 3 Max in Single Turn 1 | . . 1 Machines Repaired . | . . . Machines Dismantled . | . . . Machines Sabotaged . | . . . Overloaded Fab Kills . | . . . Hacking | -11 -10 -10 --------- Run | Yrd Mat Sub Machines Accessed 1 | . . 1 Terminals . | . . . Fabricators . | . . . Repair Stations . | . . . Recycling Units . | . . . Scanalyzers . | . . . Garrison Access . | . . . Total Hacks 1 | . . 1 Successful 1 | . . 1 Failed . | . . . Catastrophic . | . . . Database Lockouts . | . . . Manual . | . . . Terminals . | . . . Fabricators . | . . . Repair Stations . | . . . Recycling Units . | . . . Scanalyzers . | . . . Garrison Access . | . . . Terminal Hacks 1 | . . 1 Proto ID Catalog 1 | . . 1 Fabricator Hacks . | . . . Repair Station Hacks . | . . . Recycling Unit Hacks . | . . . Scanalyzer . | . . . Garrison Access Hacks . | . . . Unauthorized Hacks . | . . . Terminals . | . . . Fabricators . | . . . Repair Stations . | . . . Recycling Units . | . . . Scanalyzers . | . . . Garrison Access . | . . . Data Cores Recovered . | . . . Used . | . . . Hacking Detections . | . . . Full Trace Events . | . . . Feedback Events . | . . . Feedback Blocked . | . . . Robot Schematics Acquired . | . . . Robots Built . | . . . Authchips . | . . . Time . | . . . Total Robot Build Rating . | . . . Part Schematics Acquired . | . . . Parts Built . | . . . Authchips . | . . . Time . | . . . Total Part Build Rating . | . . . Parts Repaired . | . . . Time . | . . . Parts Recycled . | . . . Recycled Matter . | . . . Retrieved Matter . | . . . Retrieved Components . | . . . Parts Scanalyzed . | . . . Part Schematics Acquired . | . . . Parts Damaged . | . . . Bothacking | -11 -10 -10 ------------ Run | Yrd Mat Sub Used RIF Installer . | . . . Robots Hacked . | . . . Non-combat . | . . . Combat . | . . . Robot Hacks Applied . | . . . Relay Couplers Released . | . . . Fabnet Peak Effective % . | . . . Robots Rewired . | . . . Allies Hacked . | . . . Hacks Repelled . | . . . Allies | -11 -10 -10 -------- Run | Yrd Mat Sub Total Allies . | . . . Largest Group . | . . . Highest-Rated Group . | . . . Highest-Rated Ally . | . . . Total Orders . | . . . Ally Attacks . | . . . Total Damage . | . . . Kills . | . . . Allies Corrupted . | . . . Allies Melted . | . . . Intel | -11 -10 -10 ------- Run | Yrd Mat Sub Active Infowar (turns) 423 | . . 423 Optics 423 | . . 423 Robot Analysis Total . | . . . Derelict Logs Recovered 1 | . . 1 Drone Launches . | . . . Drone Recoveries . | . . . Exploration | -11 -10 -10 ------------- Run | Yrd Mat Sub Turns Passed 1537 | 69 46 1422 Spaces Moved 796 | 39 25 732 Core 3 | 3 . . Treads 24 | 8 . 16 Legs 769 | 28 25 716 Wheels . | . . . Hover . | . . . Flight . | . . . Fastest Speed 50 | 50 120 120 Average Speed 154 | 122 120 157 Slowest Speed 190 | 160 120 190 Overloaded Moves . | . . . Propulsion Burnouts . | . . . Robots Hopped . | . . . Potential Cave-ins . | . . . Cave-ins Triggered . | . . . Exploration Rate (%) 18 | 4 5 46 Regions Visited 2 Branch Regions 1 Pre-discovered Areas 1 | . . 1 Known Exits Taken . | . . . Unknown Exits Taken 2 | 1 1 . Scrap Searched 2 | . . 2 Spaces Dug . | . . . Terrain Destroyed 2 | . . 2 Melee . | . . . Projectile 2 | . . 2 AOE . | . . . Terrain Rammed . | . . . Walls Destroyed . | . . . Machines Disabled . | . . . Actions | -11 -10 -10 --------- Run | Yrd Mat Sub Total 944 | 53 35 856 Wait 11 | . 7 4 Move 794 | 38 24 732 Hop . | . . . Pick Up 11 | 5 1 5 Fast Attach 11 | 7 . 4 Attach 2 | . . 2 Detach 1 | 1 . . Swap 9 | . . 9 Drop 9 | . . 9 Fire 94 | 2 3 89 Melee . | . . . Ram . | . . . Kick . | . . . Crush 2 | . . 2 Escape Stasis . | . . . Rewire . | . . . Trap . | . . . Miscellaneous . | . . . Route ------- -11/Scrapyard -10/Materials -10/Subcaves (discovered 1 exit: [*Rec]) History --------- Turn | Location | Event 6 | -11/Scrapyard | Discovered new exit (range 15) 70 | -11/Scrapyard | Entered Materials 111 | -10/Materials | Discovered new exit (range 3) 116 | -10/Materials | Entered Subcaves 117 | -10/Subcaves | Approached by a straggling Scientist 208 | -10/Subcaves | Disturbed a concealed Subdweller 305 | -10/Subcaves | Build established: Mutant 501 | -10/Subcaves | Discovered new exit (range 11) 626 | -10/Subcaves | Shifting Twisted Machinery released Mak. System Restoration Module 656 | -10/Subcaves | Shifting Twisted Machinery released Hvy. Battle Rifle 1191 | -10/Subcaves | Learned location of Storage (-9) 1195 | -10/Subcaves | Visited 4L-MR0's lab 1242 | -10/Subcaves | Found Power Bank 1282 | -10/Subcaves | Core integrity fell below 50% 1525 | -10/Subcaves | Core integrity fell below 20% 1538 | -10/Subcaves | Destroyed by E6-1YQ(R) with Subdweller Machine Gun Last Messages --------------- 01306_ Dropped Lgt. Assault Rifle. XS-8XB(c): "I think it's somewhere east of here" 01353_ 3I-CJ0(R): "ECOKILL!" 01356_ Broken Sub. Power Source destroyed. 01356_ Critical hit (Meltdown: +270). 01358_ Aluminum Leg destroyed. 01370_ Sub. Beam Cannon melted. 01370_ 3I-CJ0(R) destroyed. 01373_ Acquired 54 matter. XS-8XB(c): "I think it's somewhere southeast of here" 01476_ TI-U6M(R) affixes Scrap Shield Fragment to Scrap Shield. 01477_ Hvy. Battle Rifle destroyed. 01502_ Subatomizers dissect the Lgt. Assault Rifle. 01534_ Lgt. Treads destroyed. 01536_ Battle Rifle destroyed. 01536_ Slammed into TI-U6M(R). 01538_ TI-U6M(R) knocked back. Map ----- +----------------------------------------------------+ | ##??????????????????????????????????????# | | #???????????????????????????????####???# | | ##???????????????????##????????## ##?## | | ##???????????????####"????????# ### # | | # ## #???????????????#" #???????# ## # | | ####### #??????????######"" ####?#### #?# # | | ??????# ##?##########" ## " " "### ## ### | | ??????# ##??# ] &""##""" #?#" " "" #"" | | #???### ##??### = #"" "#???# # | | ##?## ##?#"""X"=*+" " #??### & # "### | | ###% #?#"""""""# """#?##"# ""## ! ###?? | | #?##########" "#?# " ""#" &%""#???? | | #?????????## """### "## ### &"""#???? | | ##????######" "" ##""#?# #?#" "#" ??? | | ##?????# # #### #?## "###"" ### ? | | ##??????##=%! #### #### "#### #??# | | # ##???????#<%!## ### " ##?? ??? | | # #??????###<[ "###### #? #??? | | # ##???### < *! ### # # # ##? ???? | | ## #???# #########?# ## ???? | | ?### #??## #???????? ##?# ???? | | ?## ##?## #### #???????? #???? ??? | | ##" #### ##?####???????## ?????? ??? | | ## ## ##?????????????#?????????? | | ### ###?????????????????????? | | #% ### #?## R@ #?????????????????????? | | ##" #?# #?# R #?????????????????????? | | ### #?# ### #????????????????????? | | #?# #?# #### ######????????????????????? | | #?# #?## #?# #?????????????????????????? | | #?# #??? # #?## #?????????????????????????? | | #?# #??? ###?? #?????????????????????????? | | #### #??? ??? #?????????????????????????? | | #######??? #?? ??????????????????????????? | | #???????? ? ## ??????????????????????????? | | #???????? #?## ??????????????????????????? | | #????????# ???## ??????????????????????????? | | #????? ??????#??????????????????????????? | | ????????????????????????????????????????? | | ????????????????????????????????????????? | | ?????????????????????????????????????????? | | ?????????????????????????????????????????? | | ?????????????????????????????????????????? | | ? ??????????????????????????????????????????? | | ? ??????????????????????????????????????????? | | ??# ???????????????????????????????????????????? | | ???? ????????????????????????????????????????????? | | ?????????????????????????????????????????????????? | | ?????????????????????????????????????????????????? | | ?????????????????????????????????????????????????? | +----------------------------------------------------+ Best States ------------- Heat Dissipation 25 Coolant Potential 50 Energy Generation 15 Energy Capacity 250 Matter Stores 300 Matter Capacity 300 Sight Range 21 Terrain Scan Density 10 Evasion (%) 55 Recoil Reduction 2 Item Schematics ----------------- None Robot Schematics ------------------ None Fabricated ------------ Nothing Repaired ---------- Nothing Alien Tech Used ----------------- None Achievements -------------- None Challenges ------------ None Game ------ Seed EnhancedGreatDiverter Manual? 0 Play Time 00:12:33 Cumulative 109.2 hours Start 2025.05.08 @ 19:57:27 End 2025.05.08 @ 20:07:46 Sessions 1 Manual Loads 0 Difficulty Rogue Special Mode None Game No. 92 Rogue 92 Adventurer 0 Explorer 0 Win Type - Total 1 Types 1/0/0/0/0/0/0/0/0/0 Lore% 44 Gallery% 46 Achievement% 43 Wizard Run 0 Options --------- Layout 1 ASCII 0 Keyboard 0 Movement Mouse Keybinds 0 Fullscreen 1 Font 24/Smallcaps Map View 50x35 Zoom Use 0% Tactical HUD 1 Map Filters NONE Filters NONE Steam 1 RUN: f709bd17-1d20-4981-a6b7-6efca027b367